fUSD/lending_fUSD_20240616
["ID","MTS","AMOUNT","RATE_DAILY","PERIOD"]
[329669408,1718556658152,-1882.49640001,0.00027761,8]
[329669409,1718556658167,-2614.79,0.00027761,8]
[329669410,1718556658180,-2614.79,0.00027761,8]
[329669411,1718556658201,-2614.79,0.00027761,8]
[329669412,1718556658214,-2614.79,0.00027761,8]
[329669413,1718556658244,-2614.79,0.00027761,8]
[329669414,1718556658255,-2614.79,0.00027761,8]
[329669415,1718556658290,-2614.79,0.00027761,8]
[329669416,1718556658322,-2614.79,0.00027761,8]
[329669417,1718556658372,-2614.79,0.00027761,8]
[329669418,1718556658404,-2614.81890472,0.00027761,8]
[329669419,1718556658438,-554.05,0.00027761,8]
[329669420,1718556658484,-500.0,0.00027761,8]
[329669421,1718556658502,-554.05,0.00027761,8]
[329669422,1718556658520,-500.0,0.00027761,8]
[329669423,1718556658536,-554.05,0.00027761,8]
[329669424,1718556658557,-500.0,0.00027761,8]
[329669425,1718556658569,-554.05,0.00027761,8]
[329669426,1718556658583,-554.05,0.00027761,8]
[329669427,1718556658608,-500.0,0.00027761,8]
[329669428,1718556658636,-554.05,0.00027761,8]
[329669429,1718556658676,-554.05,0.00027761,8]
[329669430,1718556658703,-463.4745309,0.00027761,8]
[329669431,1718556658714,-554.05,0.00027761,8]
[329669432,1718556658742,-554.05,0.00027761,8]
[329669433,1718556658776,-554.23,0.00027761,8]
[329669434,1718556658797,-1360.55,0.00027761,8]
[329669435,1718556658810,-1360.55,0.00027761,8]
[329669436,1718556658821,-1360.55,0.00027761,8]
[329669437,1718556658832,-1360.55,0.00027761,8]
[329669438,1718556658843,-1360.55,0.00027761,8]
[329669439,1718556658857,-1360.55,0.00027761,8]
[329669440,1718556658884,-1360.55,0.00027761,8]
[329669441,1718556658936,-1360.55,0.00027761,8]
[329669442,1718556658969,-1360.55,0.00027761,8]
[329669443,1718556658984,-1360.64167761,0.00027761,8]
[329669444,1718556659000,-788.97,0.00027761,8]
[329669445,1718556659011,-788.97,0.00027761,8]
[329669446,1718556659033,-788.97,0.00027761,8]
[329669447,1718556659070,-788.97,0.00027761,8]
[329669448,1718556659104,-788.97,0.00027761,8]
[329669449,1718556659119,-788.97,0.00027761,8]
[329669450,1718556659161,-584.08,0.00027761,8]
[329669451,1718556659175,-788.97,0.00027761,8]
[329669452,1718556659186,-788.97,0.00027761,8]
[329669453,1718556659197,-788.97,0.00027761,8]
[329669454,1718556659210,-789.13,0.00027761,8]
[329669455,1718556659220,-18596641.506709,0.00027762,5]
[329669456,1718556659232,-1043.57163077,0.00027762,2]
[329669457,1718556659288,-151.0,0.00027762,7]
[329669458,1718556659309,-151.0,0.00027762,7]
[329669459,1718556659332,-151.0,0.00027762,7]
[329669460,1718556659351,-151.0,0.00027762,7]
[329669461,1718556659380,-151.0,0.00027762,7]
[329669462,1718556659393,-151.0,0.00027762,7]
[329669463,1718556659410,-151.0,0.00027762,7]
[329669464,1718556659453,-151.0,0.00027762,7]
[329669465,1718556659587,-151.0,0.00027762,7]
[329669466,1718556659616,-151.0,0.00027762,7]
[329669467,1718556659652,-151.0,0.00027762,7]
[329669468,1718556659664,-151.0,0.00027762,7]
[329669469,1718556659676,-151.0,0.00027762,7]
[329669470,1718556659700,-151.0,0.00027762,7]
[329669471,1718556659732,-151.0,0.00027762,7]
[329669472,1718556659780,-151.0,0.00027762,7]
[329669473,1718556659795,-158.969233,0.00027762,7]
[329669474,1718556659833,-151.0,0.00027762,7]
[329669475,1718556659844,-291.519668,0.00027762,7]
[329669476,1718556659896,-151.0,0.00027762,7]
[329669477,1718556659917,-151.0,0.00027762,7]
[329669478,1718556659950,-151.0,0.00027762,7]
[329669479,1718556660000,-184.643335,0.00027762,7]
[329669480,1718556660041,-151.0,0.00027762,7]
[329669481,1718556660057,-184.643335,0.00027762,7]
[329669482,1718556660068,-151.0,0.00027762,7]
[329669483,1718556660107,-151.0,0.00027762,7]
[329669484,1718556660137,-161.567076,0.00027762,7]
[329669485,1718556660256,-151.0,0.00027762,7]
[329669486,1718556660269,-151.0,0.00027762,7]
[329669487,1718556660281,-151.0,0.00027762,7]
[329669488,1718556660316,-151.0,0.00027762,7]
[329669489,1718556660328,-151.0,0.00027762,7]
[329669490,1718556660348,-151.0,0.00027762,7]
[329669491,1718556660360,-195.51232,0.00027762,7]
[329669492,1718556660389,-151.0,0.00027762,7]
[329669493,1718556660420,-195.51232,0.00027762,7]
[329669494,1718556660464,-151.0,0.00027762,7]
[329669495,1718556660487,-151.0,0.00027762,7]
[329669496,1718556660532,-151.0,0.00027762,7]
[329669497,1718556660560,-151.0,0.00027762,7]
[329669498,1718556660573,-151.0,0.00027762,7]
[329669499,1718556660608,-152.002676,0.00027762,7]
[329669500,1718556660632,-151.0,0.00027762,7]
[329669501,1718556660647,-152.490432,0.00027762,7]
[329669502,1718556660664,-230.085398,0.00027762,7]
[329669503,1718556660685,-230.085398,0.00027762,7]
[329669504,1718556660713,-151.0,0.00027762,7]
[329669505,1718556660744,-151.0,0.00027762,7]
[329669506,1718556660779,-162.603222,0.00027762,7]
[329669507,1718556660793,-232045.84575535,0.00027767,6]
[329669508,1718556660833,-211.48025966,0.00027768,2]
[329669509,1718556660851,-174.48065591,0.00027768,2]
[329669510,1718556660876,-1433.85655047,0.00027768,2]
[329669511,1718556660904,-1067.04191087,0.00027768,2]
[329669512,1718556660919,-155.69313599,0.00027768,2]
[329669513,1718556660939,-1000.0,0.00027768,2]
[329669514,1718556660957,-216.99201786,0.00027768,2]
[329669515,1718556661036,-500.0,0.00027768,2]
[329669516,1718556661068,-500.0,0.00027768,2]
[329669517,1718556661085,-500.0,0.00027768,2]
[329669518,1718556661107,-500.0,0.00027768,2]
[329669519,1718556661121,-500.0,0.00027768,2]
[329669520,1718556661149,-500.0,0.00027768,2]
[329669521,1718556661199,-215.0,0.00027769,2]
[329669522,1718556661211,-2000.0,0.00027769,2]
[329669523,1718556661242,-215.0,0.00027769,2]
[329669524,1718556661258,-151.0,0.00027769,6]
[329669525,1718556661272,-125253084.6941577,0.0002777,5]
[329669526,1718556661415,-38354.8654747,0.0002777,5]
[329669527,1718556661550,-1278.56167909,0.0002776,2]
[329669528,1718556661576,-511.62202105,0.0002776,2]
[329669529,1718556661596,-690.84016,0.00027762,7]
[329669530,1718556661609,-155.21016671,0.0002777,5]
[329669531,1718556661642,-40950.25866149,0.0002777,5]
[329669532,1718556661686,-2671.07007893,0.0002777,5]
[329669533,1718556661716,-907410.85445742,0.0002777,5]
[329669534,1718556661729,-2428.01392978,0.0002777,5]
[329669535,1718556661770,-314462.42792738,0.0002777,5]
[329669536,1718556661789,-3496.79817067,0.0002777,5]
[329669537,1718556661804,-306.76,0.0002777,5]
[329669538,1718556662633,-151.0,0.00027762,7]
[329669539,1718556662648,-4384.20692704,0.0002777,5]
[329669540,1718556662668,-48081.05777663,0.0002777,5]
[329669541,1718556662689,-4592.15178615,0.0002777,5]
[329669542,1718556662715,-3597.99853864,0.0002777,5]
[329669543,1718556662748,-576.72697962,0.0002777,5]
[329669544,1718556662783,-158.71096478,0.0002776,2]
[329669545,1718556662810,-3788.23566055,0.0002777,5]
[329669546,1718556662823,-968.49131176,0.0002777,5]
[329669556,1718557308461,213.21,0.00025533,120]
[329669557,1718557380632,-158.71096478,0.00017259,2]
[329669559,1718557436681,364.45176861,0.00017259,2]
[329669560,1718557454520,3961.30745125,0.00017259,2]
[329669561,1718557768348,-158.71096478,0.00019725,2]
[329669562,1718557768383,-226.81877563,0.000201,2]
[329669563,1718557768442,-152.14,0.00020685,2]
[329669564,1718557768489,-152.72,0.0002069,2]
[329669565,1718557768515,-160.68601906,0.00020696,2]
[329669566,1718557768551,-254.0,0.00020781,2]
[329669567,1718557768580,-1810.07004053,0.00020781,2]
[329669568,1718557774841,-94.31995947,0.00020781,2]
[329669569,1718557774904,-150.56,0.00020782,2]
[329669570,1718557774953,-153.54,0.00020787,2]
[329669571,1718557775012,-153.87,0.00020792,2]
[329669572,1718557775051,-153.22,0.00020796,2]
[329669573,1718557775112,-152.98,0.00020798,2]
[329669574,1718557775169,-651.54902973,0.00020804,2]
[329669575,1718557775223,-1250.0,0.00021,2]
[329669576,1718557775301,-499.99,0.00021,2]
[329669577,1718557775365,-1000.0,0.00021777,2]
[329669578,1718557775439,-3961.30745125,0.00022999,2]
[329669579,1718557775481,-1300.0,0.00023,2]
[329669580,1718557775538,-352.47,0.00023539,2]
[329669581,1718557775586,-151.28,0.00024384,2]
[329669582,1718557775632,-250.0,0.0002473,2]
[329669583,1718557775679,-265.6,0.00024738,2]
[329669584,1718557775733,-200.0,0.0002475,2]
[329669585,1718557775776,-300.0,0.00024778,2]
[329669586,1718557775835,-150.4,0.00024863,2]
[329669587,1718557775874,-153.74,0.00024868,2]
[329669588,1718557775918,-151.16,0.00024873,2]
[329669589,1718557775974,-150.75,0.00024873,2]
[329669590,1718557776023,-1000.0,0.00024878,2]
[329669591,1718557776076,-1000.0,0.00024984,2]
[329669592,1718557776122,-1350.0,0.00025,2]
[329669593,1718557776171,-7432.2410971,0.00025069,2]
[329669594,1718557776220,-1278.56167909,0.0002507,2]
[329669595,1718557776308,-250.0,0.00025071,2]
[329669596,1718557776366,-373.06,0.00025249,2]
[329669597,1718557776425,-164.37,0.00025452,2]
[329669598,1718557776483,-8739.16,0.00025533,2]
[329669599,1718557776524,-1205.49676765,0.00025533,2]
[329669600,1718557776568,-250.0,0.00025574,2]
[329669601,1718557776604,-16083.9,0.0002561,2]
[329669602,1718557776644,-500.0,0.00025786,2]
[329669603,1718557776696,-352.47,0.00025803,2]
[329669604,1718557776734,-171.03,0.00026654,2]
[329669605,1718557776771,-151.0,0.00026951,5]
[329669606,1718557776833,-17812.44666351,0.00027,2]
[329669607,1718557776881,-500.0,0.00027,3]
[329669608,1718557776925,-211.0,0.00027,2]
[329669609,1718557776986,-200.0,0.00027397,7]
[329669610,1718557777031,-150.0,0.00027397,2]
[329669611,1718557777082,-500.0,0.00027399,2]
[329669612,1718557777144,-598.03532462,0.00027491,3]
[329669613,1718557777192,-480.17831618,0.00027499,8]
[329669614,1718557777234,-1119.71578419,0.0002757,2]
[329669615,1718557777281,-4152.43199398,0.00027581,2]
[329669616,1718557777332,-1119.71578415,0.00027581,2]
[329669617,1718557777376,-4152.43199398,0.00027592,2]
[329669618,1718557777429,-1119.71578415,0.00027592,2]
[329669619,1718557777484,-500.0,0.00027598,8]
[329669620,1718557777535,-479.03658219,0.00027598,8]
[329669621,1718557777575,-500.0,0.00027598,8]
[329669622,1718557777619,-467.64792123,0.00027598,8]
[329669623,1718557777687,-158.88368418,0.00027598,8]
[329669624,1718557777738,-500.0,0.00027598,8]
[329669625,1718557777780,-500.0,0.00027598,8]
[329669626,1718557777829,-210.58,0.00027598,8]
[329669627,1718557777921,-500.0,0.00027598,8]
[329669628,1718557777964,-500.0,0.00027598,8]
[329669629,1718557778027,-500.0,0.00027598,8]
[329669630,1718557778099,-500.0,0.00027598,8]
[329669631,1718557778149,-447.00582088,0.00027599,2]
[329669632,1718557778212,-188.79642671,0.00027599,2]
[329669633,1718557778262,-500.0,0.00027599,2]
[329669634,1718557778311,-581.3061507,0.00027599,8]
[329669635,1718557778369,-198.19,0.00027599,8]
[329669636,1718557778444,-500.0,0.00027599,8]
[329669637,1718557778491,-500.0,0.00027599,8]
[329669638,1718557778542,-556.85,0.00027599,8]
[329669639,1718557778585,-447.42051722,0.00027599,8]
[329669640,1718557778637,-500.0,0.00027599,8]
[329669641,1718557778682,-500.0,0.00027599,8]
[329669642,1718557778742,-1000.0,0.000276,2]
[329669643,1718557778799,-4152.43199398,0.00027603,2]
[329669644,1718557778845,-1119.71578415,0.00027603,2]
[329669645,1718557778908,-4152.43199398,0.00027614,2]
[329669646,1718557778969,-1119.71578415,0.00027614,2]
[329669647,1718557779021,-4152.43199398,0.00027626,2]
[329669648,1718557779093,-1119.71578415,0.00027626,2]
[329669649,1718557779188,-5000.0,0.00027628,2]
[329669650,1718557779267,-4152.43199398,0.00027637,2]
[329669651,1718557779307,-1119.71578415,0.00027637,2]
[329669652,1718557779358,-180.0,0.00027643,2]
[329669653,1718557779425,-4152.43199398,0.00027648,2]
[329669654,1718557779470,-1119.71578415,0.00027648,2]
[329669655,1718557779536,-4152.43199398,0.00027659,2]
[329669656,1718557779601,-1119.71578415,0.00027659,2]
[329669657,1718557779651,-1253.69161875,0.00027665,2]
[329669658,1718557779700,-164.71077271,0.0002767,2]
[329669659,1718557779775,-2480.58700374,0.0002767,2]
[329669660,1718557779834,-4152.43199398,0.0002767,2]
[329669661,1718557779905,-1119.71578415,0.0002767,2]
[329669662,1718557779963,-7352.1255,0.0002767,2]
[329669663,1718557780047,-223118.3313,0.0002767,2]
[329669664,1718557780132,-2500.0,0.000277,2]
[329669665,1718557780194,-160.0,0.000277,2]
[329669666,1718557780258,-1783.0,0.000277,2]
[329669667,1718557780322,-2000.0,0.000277,2]
[329669668,1718557780366,-489.0,0.000277,11]
[329669669,1718557780418,-489.0,0.000277,11]
[329669670,1718557780464,-291.0,0.000277,2]
[329669671,1718557780507,-2000.0,0.000277,2]
[329669672,1718557780557,-253.40645,0.000277,2]
[329669673,1718557780610,-150.0,0.000277,5]
[329669674,1718557780663,-152.08,0.00027755,2]
[329669675,1718557780713,-214.05993266,0.0002776,2]
[329669676,1718557780770,-864.0898473,0.0002776,2]
[329669677,1718557780849,-305.77236117,0.0002776,2]
[329669678,1718557780923,-155.27961372,0.0002776,2]
[329669679,1718557781248,-1250.11653251,0.0002776,2]
[329669680,1718557781324,-150.0,0.0002776,2]
[329669681,1718557781361,-198.75294983,0.0002776,2]
[329669682,1718557781397,-198.75294983,0.0002776,2]
[329669683,1718557781448,-500.0,0.00027761,8]
[329669684,1718557781499,-497.02,0.00027761,8]
[329669685,1718557781546,-1806.18402,0.00027761,2]
[329669686,1718557781609,-8833.99102911,0.00027762,13]
[329669687,1718557781645,-203.20328488,0.00027762,2]
[329669688,1718557781715,-21771.70929516,0.00027762,2]
[329669689,1718557781763,-397.7780705,0.00027765,2]
[329669690,1718557781823,-23625.6314569,0.00027765,2]
[329669691,1718557781889,-2836.2799775,0.00027765,2]
[329669692,1718557781928,-654.5832667,0.00027765,2]
[329669693,1718557781980,-150.01,0.00027768,2]
[329669694,1718557782023,-258.31960914,0.00027768,2]
[329669695,1718557782073,-441.45626882,0.00027768,90]
[329669696,1718557782119,-506.09880179,0.00027768,2]
[329669697,1718557782176,-3067.91523632,0.00027768,2]
[329669698,1718557782236,-3201.45820767,0.00027768,2]
[329669699,1718557782279,-307.14978371,0.00027768,2]
[329669700,1718557782313,-180.1145445,0.00027768,2]
[329669701,1718557782363,-530.24178284,0.00027768,2]
[329669702,1718557782400,-156.91694667,0.00027768,2]
[329669703,1718557782452,-600.97838434,0.00027768,2]
[329669704,1718557782500,-13994.9350303,0.00027768,2]
[329669705,1718557782538,-155.31177174,0.00027768,2]
[329669706,1718557782580,-446.80079403,0.00027768,2]
[329669707,1718557782620,-157.03118807,0.00027768,2]
[329669708,1718557782658,-546.04285463,0.00027768,2]
[329669709,1718557782699,-155.0,0.00027768,2]
[329669710,1718557782739,-2010.12412169,0.00027768,2]
[329669711,1718557782783,-792.99144726,0.00027768,2]
[329669712,1718557782848,-155.26192045,0.00027768,2]
[329669713,1718557782895,-488.83889264,0.00027768,2]
[329669714,1718557782933,-1626.15549031,0.00027768,2]
[329669715,1718557782976,-3709.20765049,0.00027768,2]
[329669716,1718557783032,-155.0,0.00027768,2]
[329669717,1718557783085,-155.17194487,0.00027768,2]
[329669718,1718557783151,-27495.01257078,0.00027768,2]
[329669719,1718557783195,-155.35331114,0.00027768,2]
[329669720,1718557783250,-172.54618039,0.00027768,2]
[329669721,1718557783336,-1270.18852319,0.00027768,2]
[329669722,1718557783404,-167.3482756,0.00027768,2]
[329669723,1718557783457,-833.475728,0.00027768,2]
[329669724,1718557783526,-155.0,0.00027768,2]
[329669725,1718557783572,-536.5435371,0.00027768,2]
[329669726,1718557783618,-786.90809948,0.00027768,2]
[329669727,1718557783663,-206.52102951,0.00027768,2]
[329669728,1718557783706,-625.74636743,0.00027768,2]
[329669729,1718557783756,-806.25723157,0.00027768,2]
[329669730,1718557783820,-550.46147446,0.00027768,2]
[329669731,1718557783899,-283.8003683,0.00027768,2]
[329669732,1718557783960,-1436.10317584,0.00027768,2]
[329669733,1718557784010,-155.0,0.00027768,2]
[329669734,1718557784065,-264.4535235,0.00027768,2]
[329669735,1718557784131,-343.90316993,0.00027768,2]
[329669736,1718557784175,-415.44697743,0.00027768,2]
[329669737,1718557784232,-407.62260723,0.00027768,2]
[329669738,1718557784284,-155.5986744,0.00027768,2]
[329669739,1718557784404,-1284.37855457,0.00027768,2]
[329669740,1718557784448,-241.70358386,0.00027768,2]
[329669741,1718557784520,-1731.14107425,0.00027768,2]
[329669742,1718557784566,-525.50104401,0.00027768,2]
[329669743,1718557784608,-163.02268496,0.00027768,2]
[329669744,1718557784647,-3102.76307355,0.00027768,2]
[329669745,1718557784687,-569.96267725,0.00027768,2]
[329669746,1718557784726,-5000.0,0.00027768,7]
[329669747,1718557784769,-246.78969473,0.00027768,2]
[329669748,1718557784836,-155.51523385,0.00027768,2]
[329669749,1718557784902,-205.52427433,0.00027768,2]
[329669750,1718557784938,-155.0,0.00027768,2]
[329669751,1718557784992,-194.34452143,0.00027768,2]
[329669752,1718557785063,-307.57624095,0.00027768,2]
[329669753,1718557785118,-162.52861424,0.00027768,2]
[329669754,1718557785165,-238.37315842,0.00027768,2]
[329669755,1718557785203,-207.79233236,0.00027768,10]
[329669756,1718557785267,-201.12970365,0.00027768,2]
[329669757,1718557785313,-386.25766939,0.00027768,2]
[329669758,1718557785384,-500.0,0.00027768,2]
[329669759,1718557785421,-500.0,0.00027768,2]
[329669760,1718557785478,-500.0,0.00027768,2]
[329669761,1718557785703,-500.0,0.00027768,2]
[329669762,1718557785736,-500.0,0.00027768,2]
[329669763,1718557785785,-500.0,0.00027768,2]
[329669764,1718557785825,-500.0,0.00027768,2]
[329669765,1718557785860,-500.0,0.00027768,2]
[329669766,1718557785895,-500.0,0.00027768,2]
[329669767,1718557785929,-500.0,0.00027768,2]
[329669768,1718557785973,-500.0,0.00027768,2]
[329669769,1718557786033,-500.0,0.00027768,2]
[329669770,1718557786101,-500.0,0.00027768,2]
[329669771,1718557786190,-500.0,0.00027768,2]
[329669772,1718557786252,-500.0,0.00027768,2]
[329669773,1718557786290,-500.0,0.00027768,2]
[329669774,1718557786327,-500.0,0.00027768,2]
[329669775,1718557786376,-500.0,0.00027768,2]
[329669776,1718557786466,-6080.25735411,0.00027769,2]
[329669777,1718557786507,-500.0,0.00027769,2]
[329669778,1718557786552,-500.0,0.00027769,2]
[329669779,1718557786613,-500.0,0.00027769,2]
[329669780,1718557786658,-500.0,0.00027769,2]
[329669781,1718557786711,-500.0,0.00027769,2]
[329669782,1718557786769,-500.0,0.00027769,2]
[329669783,1718557786835,-500.0,0.00027769,8]
[329669784,1718557786882,-500.0,0.00027769,8]
[329669785,1718557786965,-500.0,0.00027769,8]
[329669786,1718557787008,-649.63,0.00027769,8]
[329669787,1718557787050,-500.0,0.00027769,8]
[329669788,1718557787105,-500.0,0.00027769,8]
[329669789,1718557787153,-603.60965107,0.00027769,8]
[329669790,1718557787235,-500.0,0.00027769,8]
[329669791,1718557787288,-500.0,0.00027769,8]
[329669792,1718557787346,-500.0,0.00027769,8]
[329669793,1718557787393,-500.0,0.00027769,8]
[329669794,1718557787445,-500.0,0.00027769,8]
[329669795,1718557787535,-500.0,0.00027769,8]
[329669796,1718557787584,-500.0,0.00027769,8]
[329669797,1718557787630,-500.0,0.00027769,8]
[329669798,1718557787683,-218.34424359,0.00027769,8]
[329669799,1718557787723,-500.0,0.00027769,8]
[329669800,1718557787773,-179.34855441,0.00027769,8]
[329669801,1718557787814,-500.0,0.00027769,8]
[329669802,1718557787870,-500.0,0.00027769,8]
[329669803,1718557787945,-500.0,0.00027769,8]
[329669804,1718557788011,-150.0,0.00027769,8]
[329669805,1718557788053,-150.0,0.00027769,8]
[329669806,1718557788109,-150.0,0.00027769,8]
[329669807,1718557788152,-500.0,0.00027769,8]
[329669808,1718557788219,-500.0,0.00027769,8]
[329669809,1718557788269,-500.0,0.00027769,8]
[329669810,1718557788318,-500.0,0.00027769,8]
[329669811,1718557788357,-500.0,0.00027769,8]
[329669812,1718557788395,-187.28576929,0.00027769,8]
[329669813,1718557788455,-500.0,0.00027769,8]
[329669814,1718557788493,-500.0,0.00027769,8]
[329669815,1718557788542,-498.74975,0.00027769,8]
[329669816,1718557788581,-151.0,0.00027769,5]
[329669817,1718557788629,-500.0,0.00027769,8]
[329669818,1718557788690,-500.0,0.00027769,8]
[329669819,1718557788730,-500.0,0.00027769,8]
[329669820,1718557788772,-500.0,0.00027769,2]
[329669821,1718557788819,-500.0,0.00027769,2]
[329669822,1718557788859,-500.0,0.00027769,2]
[329669823,1718557788906,-523.04,0.00027769,8]
[329669824,1718557788950,-500.0,0.00027769,8]
[329669825,1718557789043,-523.04,0.00027769,8]
[329669826,1718557789093,-323.3469,0.00027769,8]
[329669827,1718557789148,-523.04,0.00027769,8]
[329669828,1718557789201,-523.04,0.00027769,8]
[329669829,1718557789251,-523.04,0.00027769,8]
[329669830,1718557789315,-523.04,0.00027769,8]
[329669831,1718557789357,-523.04,0.00027769,8]
[329669832,1718557789405,-523.04,0.00027769,8]
[329669833,1718557789445,-523.04,0.00027769,8]
[329669834,1718557789484,-523.04,0.00027769,8]
[329669835,1718557789534,-523.04,0.00027769,8]
[329669836,1718557789584,-523.04,0.00027769,8]
[329669837,1718557789657,-523.04,0.00027769,8]
[329669838,1718557789710,-523.04,0.00027769,8]
[329669839,1718557789765,-523.04,0.00027769,8]
[329669840,1718557789829,-523.04,0.00027769,8]
[329669841,1718557789873,-523.04,0.00027769,8]
[329669842,1718557789953,-523.04,0.00027769,8]
[329669843,1718557789997,-523.04,0.00027769,8]
[329669844,1718557790048,-523.04,0.00027769,8]
[329669845,1718557790112,-523.04,0.00027769,8]
[329669846,1718557790153,-523.04,0.00027769,8]
[329669847,1718557790200,-523.04,0.00027769,8]
[329669848,1718557790455,-523.15396683,0.00027769,8]
[329669849,1718557790491,-251.73466297,0.00027769,8]
[329669850,1718557790554,-500.0,0.00027769,8]
[329669851,1718557790631,-500.0,0.00027769,8]
[329669852,1718557790744,-500.0,0.00027769,8]
[329669853,1718557790795,-500.0,0.00027769,8]
[329669854,1718557790845,-500.0,0.00027769,8]
[329669855,1718557790885,-500.0,0.00027769,8]
[329669856,1718557790952,-500.0,0.00027769,8]
[329669857,1718557791021,-500.0,0.00027769,8]
[329669858,1718557791075,-500.0,0.00027769,8]
[329669859,1718557791137,-500.0,0.00027769,8]
[329669860,1718557791187,-500.0,0.00027769,8]
[329669861,1718557791256,-472.19673943,0.00027769,8]
[329669862,1718557791334,-362.81422994,0.00027769,8]
[329669863,1718557791446,-500.0,0.00027769,8]
[329669864,1718557791487,-614.95670836,0.00027769,8]
[329669865,1718557791529,-280.0,0.0002777,5]
[329669866,1718557791576,-3409887.9374246,0.0002777,5]
[329669879,1718557833421,-226.81877563,0.00020826,2]
[329669881,1718557833473,-152.47,0.00024995,2]
[329669883,1718557833487,-150.0,0.00027397,2]
[329669885,1718557833499,-597.51122438,0.00027662,2]
[329669887,1718557833901,-6432.80267562,0.00027662,2]
[329669888,1718557833914,-809.21073304,0.0002767,2]
[329669889,1718557833927,-1581.24,0.0002776,2]
[329669890,1718557833939,-1581.24,0.0002776,2]
[329669891,1718557833953,-1581.24,0.0002776,2]
[329669892,1718557833964,-1581.24,0.0002776,2]
[329669893,1718557833979,-1440.65698334,0.0002776,2]
[329669894,1718557834957,-140.58301666,0.0002776,2]
[329669895,1718557834977,-213.15790435,0.00027761,2]
[329669896,1718557834996,-4416.99551455,0.00027762,13]
[329669897,1718557835011,-4110.93136739,0.00027762,2]
[329669898,1718557835049,-28041.49236251,0.00027762,2]
[329669908,1718557840163,-21776.5515836,0.00027762,2]
[329669909,1718557840895,-370.27272899,0.00027762,2]
[329669910,1718557840935,-307.40360557,0.00027762,2]
[329669911,1718557841189,-25327.2717446,0.00027762,2]
[329669912,1718557841221,-13565.0,0.00027762,2]
[329669913,1718557841250,-23957.7,0.00027762,2]
[329669914,1718557841277,-46504.47736385,0.00027762,2]
[329669916,1718557841312,-9553.154996,0.00027762,2]
[329669918,1718557841335,-9084.2900005,0.00027762,2]
[329669921,1718557841380,-9523.63571041,0.00027762,2]
[329670054,1718557852176,-191151.5722886,0.00027762,2]
[329670057,1718557852241,-5156.20886332,0.00027762,2]
[329670060,1718557852297,-16705.55278223,0.00027762,2]
[329670063,1718557852329,-527.04716789,0.00027762,2]
[329670065,1718557852358,-325.49043683,0.00027762,2]
[329670067,1718557852399,-1677.4,0.00027762,2]
[329670070,1718557852441,-26864.18307131,0.00027762,2]
[329670077,1718557852544,-158.71096478,0.00027761,2]
[329670079,1718557852561,-1366.60903522,0.00027762,2]
[329670083,1718557852607,-528.5269001,0.00027762,2]
[329670085,1718557852629,-1631.275,0.00027762,2]
[329670087,1718557852666,-397.34954669,0.00027762,2]
[329670089,1718557852705,-2779.2,0.00027762,2]
[329670094,1718557852780,-2247.44095932,0.00027762,2]
[329670097,1718557852829,-226.81877563,0.0002082,2]
[329670100,1718557852876,-1278.56167909,0.00027761,2]
[329670105,1718557852936,-2929.95279458,0.00027762,2]
[329670230,1718557931224,2396.17120749,0.00017259,30]
[329670232,1718557992641,551.95124722,0.00017259,2]
[329670233,1718558005148,2850.64,0.00026394,62]
[329670234,1718558008925,546.13065398,0.00017259,2]
[329670235,1718558009733,1597.44747166,0.00026393,30]
[329670236,1718558094217,1331.20622639,0.00026358,30]
[329670237,1718558148606,151.0,0.00026514,30]
[329670239,1718558164735,693.55844395,0.00026041,30]